[Event "Late-Titled-Tuesday-Blitz-May-28-2024"]
[Site "Chess.com"]
[Date "2024.05.28"]
[Round "2"]
[White "sammartin99"]
[Black "Mikhail_Golubev"]
[Result "0-1"]
[WhiteElo "2300"]
[BlackElo "2641"]
[TimeControl "180+1"]
[EndTime "14:19:11 PDT"]
[Termination "Mikhail_Golubev won on time"]

1. d4 {[%clk 0:03:00.9]} 1... Nf6 {[%clk 0:02:59.3]} 2. c4 {[%clk 0:02:59.8]}
2... d6 {[%clk 0:02:59.9]} 3. Nf3 {[%clk 0:02:57.9]} 3... g6 {[%clk 0:03:00.3]}
4. Nc3 {[%clk 0:02:56.6]} 4... Bg7 {[%clk 0:03:00.7]} 5. e4 {[%clk 0:02:56.2]}
5... O-O {[%clk 0:03:01.1]} 6. Be2 {[%clk 0:02:55.6]} 6... e5 {[%clk 0:03:01.6]}
7. Be3 {[%clk 0:02:54.1]} 7... h6 {[%clk 0:03:01.1]} 8. dxe5 {[%clk 0:02:48.9]}
8... Ng4 {[%clk 0:02:59.1]} 9. Bf4 {[%clk 0:02:46.9]} 9... Nxe5 {[%clk
0:02:32.8]} 10. O-O {[%clk 0:02:18.6]} 10... Nbc6 {[%clk 0:02:30.7]} 11. Ne1
{[%clk 0:02:04.2]} 11... Be6 {[%clk 0:02:26.7]} 12. Nd5 {[%clk 0:01:47.9]} 12...
Re8 {[%clk 0:02:08.3]} 13. Rc1 {[%clk 0:01:38.6]} 13... Nd4 {[%clk 0:01:59.4]}
14. Qxd4 {[%clk 0:01:20.9]} 14... Nf3+ {[%clk 0:01:59.1]} 15. Nxf3 {[%clk
0:01:21.1]} 15... Bxd4 {[%clk 0:01:58.9]} 16. Nxd4 {[%clk 0:01:21.4]} 16... Bxd5
{[%clk 0:01:57.8]} 17. exd5 {[%clk 0:01:21.6]} 17... Re4 {[%clk 0:01:40.1]} 18.
Be3 {[%clk 0:01:21.6]} 18... Qe7 {[%clk 0:01:40.2]} 19. Nc2 {[%clk 0:01:12.8]}
19... Re8 {[%clk 0:01:32.8]} 20. Bd3 {[%clk 0:01:10]} 20... Re5 {[%clk
0:01:25.9]} 21. Bd4 {[%clk 0:01:08.8]} 21... Qh4 {[%clk 0:01:01.2]} 22. Bxe5
{[%clk 0:01:06.2]} 22... Rxe5 {[%clk 0:01:02.1]} 23. Rce1 {[%clk 0:00:59.4]}
23... Qf4 {[%clk 0:00:58.6]} 24. Rxe5 {[%clk 0:00:52.8]} 24... Qxe5 {[%clk
0:00:59.5]} 25. b4 {[%clk 0:00:37.5]} 25... Qc3 {[%clk 0:00:55.2]} 26. Rd1
{[%clk 0:00:36.1]} 26... a5 {[%clk 0:00:50.9]} 27. a3 {[%clk 0:00:36.1]} 27...
a4 {[%clk 0:00:40.9]} 28. h3 {[%clk 0:00:34.1]} 28... h5 {[%clk 0:00:37.7]} 29.
h4 {[%clk 0:00:33.3]} 29... Kg7 {[%clk 0:00:37.8]} 30. g3 {[%clk 0:00:33.8]}
30... Qb3 {[%clk 0:00:24.3]} 31. Kg2 {[%clk 0:00:28.9]} 31... b5 {[%clk
0:00:21.6]} 32. cxb5 {[%clk 0:00:25.6]} 32... Qxd5+ {[%clk 0:00:21.4]} 33. Kg1
{[%clk 0:00:26.3]} 33... Qb3 {[%clk 0:00:19.6]} 34. Kf1 {[%clk 0:00:21.7]} 34...
Qc3 {[%clk 0:00:19.4]} 35. Ke2 {[%clk 0:00:20.8]} 35... Qe5+ {[%clk 0:00:19.3]}
36. Kd2 {[%clk 0:00:20.9]} 36... Qf6 {[%clk 0:00:16.3]} 37. Ke2 {[%clk
0:00:16.9]} 37... Qe5+ {[%clk 0:00:16.1]} 38. Kd2 {[%clk 0:00:17.4]} 38... Qf6
{[%clk 0:00:16.2]} 39. Rf1 {[%clk 0:00:14.2]} 39... Qe5 {[%clk 0:00:12.9]} 40.
f4 {[%clk 0:00:11.4]} 40... Qb2 {[%clk 0:00:11.3]} 41. Re1 {[%clk 0:00:10.8]}
41... Kf6 {[%clk 0:00:06.7]} 42. Re2 {[%clk 0:00:08.4]} 42... d5 {[%clk
0:00:04.5]} 43. Re5 {[%clk 0:00:07.5]} 43... d4 {[%clk 0:00:01.4]} 44. Rd5
{[%clk 0:00:04.2]} 44... Kg7 {[%clk 0:00:01.5]} 45. Rxd4 {[%clk 0:00:04.2]}
45... Qb3 {[%clk 0:00:02]} 46. Rd7 {[%clk 0:00:02.5]} 46... Qe6 {[%clk
0:00:02.2]} 47. Rxc7 {[%clk 0:00:01.9]} 47... Qg4 {[%clk 0:00:02.8]} 48. Rc5
{[%clk 0:00:01.8]} 48... Qxg3 {[%clk 0:00:03.2]} 49. b6 {[%clk 0:00:02.5]} 49...
Qxf4+ {[%clk 0:00:03.6]} 50. Kc3 {[%clk 0:00:02.5]} 50... Qf6+ {[%clk
0:00:04.1]} 51. Kd2 {[%clk 0:00:02.5]} 51... Qxb6 {[%clk 0:00:04.9]} 52. Rb5
{[%clk 0:00:02.2]} 52... Qf6 {[%clk 0:00:04.8]} 53. Ra5 {[%clk 0:00:02.2]} 53...
Qxh4 {[%clk 0:00:04.8]} 54. Rxa4 {[%clk 0:00:02.2]} 54... Qf2+ {[%clk
0:00:05.4]} 55. Kc3 {[%clk 0:00:02.1]} 55... h4 {[%clk 0:00:06.3]} 56. Ra7
{[%clk 0:00:01]} 56... Qxa7 {[%clk 0:00:04.4]} 0-1

[Event "Late-Titled-Tuesday-Blitz-May-28-2024"]
[Site "Chess.com"]
[Date "2024.05.28"]
[Round "2"]
[White "kirillshevchenko"]
[Black "DirtyKabab"]
[Result "1-0"]
[WhiteElo "2899"]
[BlackElo "2565"]
[TimeControl "180+1"]
[EndTime "14:19:15 PDT"]
[Termination "kirillshevchenko won on time"]

1. b3 {[%clk 0:02:55.9]} 1... e5 {[%clk 0:02:56.4]} 2. Bb2 {[%clk 0:02:55.6]}
2... Nc6 {[%clk 0:02:56.9]} 3. e3 {[%clk 0:02:52.6]} 3... Nf6 {[%clk 0:02:56.2]}
4. Bb5 {[%clk 0:02:52.6]} 4... Bd6 {[%clk 0:02:56.1]} 5. Na3 {[%clk 0:02:39.7]}
5... Na5 {[%clk 0:02:55.8]} 6. Nf3 {[%clk 0:02:29.8]} 6... Qe7 {[%clk
0:02:47.5]} 7. Nc4 {[%clk 0:02:15.3]} 7... Nxc4 {[%clk 0:02:47]} 8. Bxc4 {[%clk
0:02:16.2]} 8... c6 {[%clk 0:02:26.2]} 9. Nh4 {[%clk 0:01:46.6]} 9... g6 {[%clk
0:02:18.1]} 10. f4 {[%clk 0:01:45.8]} 10... exf4 {[%clk 0:01:48.2]} 11. O-O
{[%clk 0:01:45]} 11... O-O {[%clk 0:01:31.2]} 12. exf4 {[%clk 0:01:27.9]} 12...
Bc5+ {[%clk 0:00:51.5]} 13. d4 {[%clk 0:01:07.6]} 13... Ba3 {[%clk 0:00:37.2]}
14. Bxa3 {[%clk 0:01:00.7]} 14... Qxa3 {[%clk 0:00:37.6]} 15. f5 {[%clk
0:00:59.8]} 15... d5 {[%clk 0:00:34.7]} 16. Bd3 {[%clk 0:00:59.6]} 16... Qb4
{[%clk 0:00:27.2]} 17. Nf3 {[%clk 0:00:43.4]} 17... Ne4 {[%clk 0:00:19.3]} 18.
f6 {[%clk 0:00:12]} 18... Nxf6 {[%clk 0:00:15.7]} 19. Qc1 {[%clk 0:00:12]} 19...
Ne4 {[%clk 0:00:14.5]} 20. Qh6 {[%clk 0:00:11.6]} 20... Bg4 {[%clk 0:00:06.9]}
21. Bxe4 {[%clk 0:00:10.9]} 21... dxe4 {[%clk 0:00:07.6]} 22. Ng5 {[%clk
0:00:08]} 22... Qxd4+ {[%clk 0:00:08]} 23. Kh1 {[%clk 0:00:08.8]} 23... Qg7
{[%clk 0:00:08.5]} 24. Qh4 {[%clk 0:00:09.6]} 24... Bf5 {[%clk 0:00:06.4]} 25.
g4 {[%clk 0:00:07.6]} 25... Bd7 {[%clk 0:00:05.7]} 26. Nxe4 {[%clk 0:00:07.3]}
26... f5 {[%clk 0:00:05.6]} 27. Nc5 {[%clk 0:00:03.9]} 27... Rae8 {[%clk
0:00:05]} 28. Rad1 {[%clk 0:00:04.2]} 28... Bc8 {[%clk 0:00:04.3]} 29. g5 {[%clk
0:00:03.7]} 29... f4 {[%clk 0:00:04.4]} 30. Rxf4 {[%clk 0:00:03.3]} 30... Rxf4
{[%clk 0:00:04.6]} 31. Qxf4 {[%clk 0:00:04.2]} 31... Qf7 {[%clk 0:00:03.3]} 32.
Qxf7+ {[%clk 0:00:03.9]} 32... Kxf7 {[%clk 0:00:04.2]} 33. Rf1+ {[%clk
0:00:03.8]} 33... Ke7 {[%clk 0:00:04.3]} 34. Re1+ {[%clk 0:00:04.2]} 34... Kd8
{[%clk 0:00:04.5]} 35. Rxe8+ {[%clk 0:00:04.7]} 35... Kxe8 {[%clk 0:00:05.1]}
36. Kg2 {[%clk 0:00:05.3]} 36... Ke7 {[%clk 0:00:05.7]} 37. Kf3 {[%clk
0:00:05.6]} 37... Kd6 {[%clk 0:00:06.4]} 38. Ne4+ {[%clk 0:00:04.7]} 38... Ke5
{[%clk 0:00:06.9]} 39. Nf6 {[%clk 0:00:05.6]} 39... h6 {[%clk 0:00:05.4]} 40. h4
{[%clk 0:00:03.3]} 40... hxg5 {[%clk 0:00:04.6]} 41. hxg5 {[%clk 0:00:04.2]}
41... Kf5 {[%clk 0:00:05.1]} 42. Ne4 {[%clk 0:00:04.2]} 42... Be6 {[%clk
0:00:04.5]} 43. c4 {[%clk 0:00:04.1]} 43... b5 {[%clk 0:00:05.2]} 44. Ke3 {[%clk
0:00:02.3]} 44... bxc4 {[%clk 0:00:04.9]} 45. bxc4 {[%clk 0:00:03.2]} 45... Ke5
{[%clk 0:00:04]} 46. Nd2 {[%clk 0:00:02.2]} 46... Bf5 {[%clk 0:00:03.5]} 47.
Nf3+ {[%clk 0:00:02.4]} 47... Kd6 {[%clk 0:00:03.1]} 48. Nh4 {[%clk 0:00:02.3]}
48... Bb1 {[%clk 0:00:02.4]} 49. a3 {[%clk 0:00:02.9]} 49... Kc5 {[%clk
0:00:02.7]} 50. Nf3 {[%clk 0:00:02.8]} 50... Kxc4 {[%clk 0:00:03.1]} 51. Nd2+
{[%clk 0:00:03.3]} 51... Kc3 {[%clk 0:00:01.8]} 52. Nxb1+ {[%clk 0:00:04.2]}
52... Kb3 {[%clk 0:00:02.4]} 53. Kd4 {[%clk 0:00:03.5]} 53... Kb2 {[%clk
0:00:02.5]} 54. Nd2 {[%clk 0:00:03.8]} 54... Kxa3 {[%clk 0:00:02.6]} 55. Kc5
{[%clk 0:00:04.4]} 55... a5 {[%clk 0:00:02.4]} 56. Nc4+ {[%clk 0:00:04.2]} 56...
Kb3 {[%clk 0:00:01.8]} 57. Nxa5+ {[%clk 0:00:04.5]} 57... Kc3 {[%clk 0:00:02.1]}
58. Nxc6 {[%clk 0:00:05.4]} 58... Kd3 {[%clk 0:00:02.4]} 59. Kd5 {[%clk
0:00:06.1]} 59... Ke3 {[%clk 0:00:03.2]} 60. Ke5 {[%clk 0:00:07]} 1-0

[Event "Late-Titled-Tuesday-Blitz-May-28-2024"]
[Site "Chess.com"]
[Date "2024.05.28"]
[Round "2"]
[White "Oleg_Papayan"]
[Black "Beaterawn"]
[Result "1-0"]
[WhiteElo "2597"]
[BlackElo "2361"]
[TimeControl "180+1"]
[EndTime "14:19:18 PDT"]
[Termination "Oleg_Papayan won by resignation"]

1. e4 {[%clk 0:02:59.6]} 1... c5 {[%clk 0:03:00.3]} 2. d4 {[%clk 0:02:59.7]}
2... cxd4 {[%clk 0:03:01.2]} 3. Qxd4 {[%clk 0:03:00.4]} 3... e6 {[%clk
0:03:00.1]} 4. Qd3 {[%clk 0:03:01.3]} 4... Nc6 {[%clk 0:02:59.8]} 5. Nc3 {[%clk
0:03:01.8]} 5... Nf6 {[%clk 0:02:58.9]} 6. Bf4 {[%clk 0:03:02.2]} 6... Bb4
{[%clk 0:02:56.9]} 7. Ne2 {[%clk 0:03:02.3]} 7... d5 {[%clk 0:02:55.3]} 8. O-O-O
{[%clk 0:03:02.5]} 8... O-O {[%clk 0:02:47.6]} 9. exd5 {[%clk 0:03:02.1]} 9...
exd5 {[%clk 0:02:34.2]} 10. Nxd5 {[%clk 0:03:03]} 10... Nxd5 {[%clk 0:02:25.5]}
11. Qxd5 {[%clk 0:03:03.9]} 11... Qb6 {[%clk 0:02:23.7]} 12. Be3 {[%clk
0:02:58.8]} 12... Qc7 {[%clk 0:02:20.6]} 13. Nd4 {[%clk 0:02:36.9]} 13... Bg4
{[%clk 0:02:18.2]} 14. f3 {[%clk 0:02:24.6]} 14... Rac8 {[%clk 0:01:58.7]} 15.
Nxc6 {[%clk 0:02:00.5]} 15... Be6 {[%clk 0:01:58.4]} 16. Qe4 {[%clk 0:01:32.9]}
16... Qxc6 {[%clk 0:01:57.3]} 17. Qxc6 {[%clk 0:01:32.6]} 17... Rxc6 {[%clk
0:01:57]} 18. a3 {[%clk 0:01:24.1]} 18... Bc5 {[%clk 0:01:41.1]} 19. Bxc5 {[%clk
0:01:20.4]} 19... Rxc5 {[%clk 0:01:42]} 20. Bd3 {[%clk 0:01:20.1]} 20... Rg5
{[%clk 0:01:29.5]} 21. g3 {[%clk 0:01:12.6]} 21... Rc8 {[%clk 0:01:18.2]} 22.
Be4 {[%clk 0:01:10.1]} 22... b6 {[%clk 0:01:15.9]} 23. Rd6 {[%clk 0:01:04.4]}
23... Kf8 {[%clk 0:01:09.7]} 24. Rhd1 {[%clk 0:00:59.2]} 24... Ke7 {[%clk
0:00:54.6]} 25. Rc6 {[%clk 0:00:47.8]} 25... Rxc6 {[%clk 0:00:47.9]} 26. Bxc6
{[%clk 0:00:48.7]} 26... Rh5 {[%clk 0:00:47.5]} 27. Rd2 {[%clk 0:00:48.5]} 27...
g6 {[%clk 0:00:38.6]} 28. f4 {[%clk 0:00:46.7]} 28... Rc5 {[%clk 0:00:28]} 29.
Be4 {[%clk 0:00:41]} 29... a5 {[%clk 0:00:20.5]} 30. Kb1 {[%clk 0:00:39.4]}
30... b5 {[%clk 0:00:20.6]} 31. b3 {[%clk 0:00:38.6]} 31... h6 {[%clk
0:00:16.7]} 32. Kb2 {[%clk 0:00:38.2]} 32... g5 {[%clk 0:00:14.6]} 33. fxg5
{[%clk 0:00:38.9]} 33... hxg5 {[%clk 0:00:14.9]} 34. Bg2 {[%clk 0:00:32.1]}
34... f5 {[%clk 0:00:14.4]} 35. c3 {[%clk 0:00:31.4]} 35... f4 {[%clk
0:00:14.3]} 36. b4 {[%clk 0:00:30]} 36... axb4 {[%clk 0:00:14]} 37. axb4 {[%clk
0:00:27.1]} 37... Re5 {[%clk 0:00:14.1]} 38. gxf4 {[%clk 0:00:23.2]} 38... gxf4
{[%clk 0:00:15]} 39. Bf1 {[%clk 0:00:23.9]} 39... Bf5 {[%clk 0:00:12.9]} 40. c4
{[%clk 0:00:21.4]} 40... bxc4 {[%clk 0:00:10.8]} 41. Bxc4 {[%clk 0:00:22.3]}
41... Kf6 {[%clk 0:00:10.9]} 42. b5 {[%clk 0:00:20.9]} 42... Re1 {[%clk
0:00:10.2]} 43. Kc3 {[%clk 0:00:20.6]} 43... f3 {[%clk 0:00:06.6]} 44. b6 {[%clk
0:00:20.5]} 44... Be4 {[%clk 0:00:04.6]} 45. Kd4 {[%clk 0:00:18.2]} 45... Bb7
{[%clk 0:00:01.6]} 46. Bd5 {[%clk 0:00:17.9]} 46... Bxd5 {[%clk 0:00:02.1]} 47.
Kxd5 {[%clk 0:00:18.8]} 47... Rb1 {[%clk 0:00:02.6]} 48. Kc6 {[%clk 0:00:18.8]}
48... Kg5 {[%clk 0:00:03.2]} 49. b7 {[%clk 0:00:18.9]} 49... Kf4 {[%clk
0:00:03.9]} 50. Kc7 {[%clk 0:00:19.2]} 50... Ke3 {[%clk 0:00:04.7]} 51. Rd1
{[%clk 0:00:08.4]} 51... Rxd1 {[%clk 0:00:04.3]} 52. b8=Q {[%clk 0:00:08.7]}
52... f2 {[%clk 0:00:05.2]} 53. Qe8+ {[%clk 0:00:07]} 53... Kf3 {[%clk
0:00:05.7]} 54. Qf7+ {[%clk 0:00:07.2]} 54... Kg2 {[%clk 0:00:06]} 55. Qg6+
{[%clk 0:00:06.7]} 55... Kh1 {[%clk 0:00:06.6]} 56. Qe4+ {[%clk 0:00:06.8]}
56... Kxh2 {[%clk 0:00:06.8]} 57. Qf4+ {[%clk 0:00:06.5]} 57... Kh3 {[%clk
0:00:06.2]} 58. Qf3+ {[%clk 0:00:06.4]} 58... Kh2 {[%clk 0:00:06.8]} 59. Qxf2+
{[%clk 0:00:06]} 59... Kh3 {[%clk 0:00:07.2]} 60. Qf3+ {[%clk 0:00:06.4]} 60...
Kh2 {[%clk 0:00:07.9]} 61. Qxd1 {[%clk 0:00:07.3]} 61... Kg3 {[%clk 0:00:08]}
62. Qf1 {[%clk 0:00:07.3]} 62... Kh2 {[%clk 0:00:08.2]} 63. Qf3 {[%clk
0:00:06.9]} 1-0

[Event "Late-Titled-Tuesday-Blitz-May-28-2024"]
[Site "Chess.com"]
[Date "2024.05.28"]
[Round "2"]
[White "glucolisis04"]
[Black "Alphafischer2019"]
[Result "0-1"]
[WhiteElo "2268"]
[BlackElo "2665"]
[TimeControl "180+1"]
[EndTime "14:19:19 PDT"]
[Termination "Alphafischer2019 won on time"]

1. d4 {[%clk 0:03:00.9]} 1... Nf6 {[%clk 0:02:59.3]} 2. c4 {[%clk 0:03:00.9]}
2... c5 {[%clk 0:02:59.6]} 3. d5 {[%clk 0:03:00.2]} 3... e5 {[%clk 0:03:00]} 4.
Nc3 {[%clk 0:02:58.4]} 4... d6 {[%clk 0:02:59.7]} 5. g3 {[%clk 0:02:50]} 5... g6
{[%clk 0:02:59.8]} 6. Bg2 {[%clk 0:02:50.3]} 6... Bg7 {[%clk 0:03:00.4]} 7. Nf3
{[%clk 0:02:49.9]} 7... O-O {[%clk 0:03:00.2]} 8. O-O {[%clk 0:02:50]} 8... h6
{[%clk 0:02:58.6]} 9. e4 {[%clk 0:02:48.1]} 9... Nh7 {[%clk 0:02:57.3]} 10. Ne1
{[%clk 0:02:44]} 10... f5 {[%clk 0:02:56.8]} 11. f4 {[%clk 0:02:44]} 11... exf4
{[%clk 0:02:51.4]} 12. Bxf4 {[%clk 0:02:37.6]} 12... g5 {[%clk 0:02:42.1]} 13.
Bd2 {[%clk 0:02:36.7]} 13... Nd7 {[%clk 0:02:36.2]} 14. Nd3 {[%clk 0:02:25.1]}
14... Ne5 {[%clk 0:02:23.9]} 15. Nxe5 {[%clk 0:02:21.6]} 15... Bxe5 {[%clk
0:02:24.8]} 16. Qc2 {[%clk 0:02:07.9]} 16... f4 {[%clk 0:02:16]} 17. Ne2 {[%clk
0:01:52]} 17... fxg3 {[%clk 0:01:39.1]} 18. Nxg3 {[%clk 0:01:51.7]} 18... Bg4
{[%clk 0:01:28.7]} 19. Nf5 {[%clk 0:01:38]} 19... Bxf5 {[%clk 0:01:28]} 20. exf5
{[%clk 0:01:37.9]} 20... Qf6 {[%clk 0:01:23.6]} 21. Bc3 {[%clk 0:01:30]} 21...
Rfe8 {[%clk 0:01:22.7]} 22. Rae1 {[%clk 0:01:18.9]} 22... Nf8 {[%clk 0:01:22.2]}
23. Kh1 {[%clk 0:01:13.4]} 23... Nd7 {[%clk 0:01:20.3]} 24. Re3 {[%clk
0:00:45.9]} 24... Re7 {[%clk 0:01:06.6]} 25. Rfe1 {[%clk 0:00:40.5]} 25... Rae8
{[%clk 0:01:05.8]} 26. Qe2 {[%clk 0:00:20.3]} 26... Kf8 {[%clk 0:00:56.2]} 27.
Bxe5 {[%clk 0:00:14.6]} 27... Rxe5 {[%clk 0:00:55.4]} 28. Rxe5 {[%clk
0:00:13.2]} 28... Rxe5 {[%clk 0:00:56]} 29. Be4 {[%clk 0:00:03.2]} 29... Re7
{[%clk 0:00:51.8]} 30. Qh5 {[%clk 0:00:02.5]} 30... Ne5 {[%clk 0:00:50.7]} 31.
Re2 {[%clk 0:00:02.2]} 31... Nxc4 {[%clk 0:00:50.5]} 32. h4 {[%clk 0:00:01.8]}
32... Rg7 {[%clk 0:00:30.8]} 33. hxg5 {[%clk 0:00:01.2]} 33... Rxg5 {[%clk
0:00:30.5]} 34. Qh3 {[%clk 0:00:01.2]} 34... Ne5 {[%clk 0:00:29.9]} 35. Bf3
{[%clk 0:00:01.3]} 35... Qxf5 {[%clk 0:00:28.9]} 36. Qxf5+ {[%clk 0:00:01.2]}
36... Rxf5 {[%clk 0:00:29.8]} 37. Bg2 {[%clk 0:00:01.2]} 37... Ke7 {[%clk
0:00:27.2]} 38. Rd2 {[%clk 0:00:01.2]} 38... h5 {[%clk 0:00:25.3]} 39. b4 {[%clk
0:00:01.3]} 39... c4 {[%clk 0:00:24.2]} 40. Rc2 {[%clk 0:00:01.9]} 40... h4
{[%clk 0:00:24]} 41. Kh2 {[%clk 0:00:01.7]} 41... b5 {[%clk 0:00:24]} 42. a4
{[%clk 0:00:01.4]} 42... a6 {[%clk 0:00:23.8]} 43. axb5 {[%clk 0:00:01.6]} 43...
axb5 {[%clk 0:00:24.7]} 44. Ra2 {[%clk 0:00:02.2]} 44... Nd3 {[%clk 0:00:23]}
45. Ra7+ {[%clk 0:00:02.6]} 45... Kf6 {[%clk 0:00:23.5]} 46. Be4 {[%clk
0:00:02.2]} 46... Rf2+ {[%clk 0:00:23.3]} 47. Kh3 {[%clk 0:00:02.3]} 47... Ke5
{[%clk 0:00:18.4]} 48. Bh7 {[%clk 0:00:02.4]} 48... Nf4+ {[%clk 0:00:17.9]} 49.
Kxh4 {[%clk 0:00:02.3]} 49... c3 {[%clk 0:00:17.7]} 50. Kg5 {[%clk 0:00:02.3]}
50... Rg2+ {[%clk 0:00:17.6]} 51. Kh4 {[%clk 0:00:02.1]} 51... Nxd5 {[%clk
0:00:14.9]} 52. Ra8 {[%clk 0:00:01.1]} 52... Rh2+ {[%clk 0:00:14.5]} 53. Kg5
{[%clk 0:00:01]} 53... Rxh7 {[%clk 0:00:15.4]} 54. Re8+ {[%clk 0:00:01]} 54...
Kd4 {[%clk 0:00:15.1]} 55. Rc8 {[%clk 0:00:01.5]} 55... Rh2 {[%clk 0:00:14]} 56.
Kf5 {[%clk 0:00:01.3]} 56... Ne3+ {[%clk 0:00:13.5]} 57. Kf4 {[%clk 0:00:01.5]}
57... Nc4 {[%clk 0:00:14.4]} 58. Kg3 {[%clk 0:00:01]} 58... c2 {[%clk
0:00:14.1]} 0-1

[Event "Late-Titled-Tuesday-Blitz-May-28-2024"]
[Site "Chess.com"]
[Date "2024.05.28"]
[Round "2"]
[White "KatakuriDono"]
[Black "ManMish2"]
[Result "0-1"]
[WhiteElo "2288"]
[BlackElo "2672"]
[TimeControl "180+1"]
[EndTime "14:19:21 PDT"]
[Termination "ManMish2 won by resignation"]

1. d4 {[%clk 0:03:00.9]} 1... d5 {[%clk 0:02:59]} 2. c4 {[%clk 0:02:59.7]} 2...
e6 {[%clk 0:02:58.7]} 3. Nc3 {[%clk 0:02:59.8]} 3... Be7 {[%clk 0:02:58.1]} 4.
cxd5 {[%clk 0:02:58.4]} 4... exd5 {[%clk 0:02:59]} 5. Nf3 {[%clk 0:02:58.5]}
5... Nf6 {[%clk 0:02:58.3]} 6. Bg5 {[%clk 0:02:58.1]} 6... c6 {[%clk 0:02:56.6]}
7. e3 {[%clk 0:02:57.7]} 7... Bf5 {[%clk 0:02:56.2]} 8. Bd3 {[%clk 0:02:55.5]}
8... Bxd3 {[%clk 0:02:55.2]} 9. Qxd3 {[%clk 0:02:55.7]} 9... Nbd7 {[%clk
0:02:54.5]} 10. Rb1 {[%clk 0:02:54.9]} 10... a5 {[%clk 0:02:52.8]} 11. O-O
{[%clk 0:02:54.3]} 11... O-O {[%clk 0:02:52.6]} 12. a3 {[%clk 0:02:49.2]} 12...
Re8 {[%clk 0:02:40.6]} 13. h3 {[%clk 0:02:45.2]} 13... Ne4 {[%clk 0:02:20.3]}
14. Bf4 {[%clk 0:02:42.4]} 14... Bd6 {[%clk 0:02:16.7]} 15. Bxd6 {[%clk
0:02:34.3]} 15... Nxd6 {[%clk 0:02:17.6]} 16. Rfc1 {[%clk 0:02:09.4]} 16... h6
{[%clk 0:02:12.5]} 17. Qc2 {[%clk 0:01:53.5]} 17... g6 {[%clk 0:01:53.9]} 18.
Nd2 {[%clk 0:01:52.5]} 18... Qg5 {[%clk 0:01:49.3]} 19. b4 {[%clk 0:01:46.1]}
19... axb4 {[%clk 0:01:44.4]} 20. axb4 {[%clk 0:01:46.1]} 20... b5 {[%clk
0:01:39.1]} 21. Ra1 {[%clk 0:01:23.4]} 21... Nb6 {[%clk 0:01:32.7]} 22. Nd1
{[%clk 0:01:12.5]} 22... Nbc4 {[%clk 0:01:26.8]} 23. Nxc4 {[%clk 0:01:12.7]}
23... bxc4 {[%clk 0:01:19]} 24. Nc3 {[%clk 0:01:12]} 24... Nf5 {[%clk
0:01:14.2]} 25. Ne2 {[%clk 0:00:55.9]} 25... Rab8 {[%clk 0:00:54.7]} 26. Qc3
{[%clk 0:00:45.4]} 26... Re7 {[%clk 0:00:38.5]} 27. Nf4 {[%clk 0:00:43.1]} 27...
Rbe8 {[%clk 0:00:36.5]} 28. b5 {[%clk 0:00:40.9]} 28... Nxe3 {[%clk 0:00:20.6]}
29. fxe3 {[%clk 0:00:36.8]} 29... Rxe3 {[%clk 0:00:21.5]} 30. Qd2 {[%clk
0:00:17.4]} 30... Qxf4 {[%clk 0:00:21.5]} 31. bxc6 {[%clk 0:00:17.8]} 31... Qg3
{[%clk 0:00:20.9]} 32. Qf2 {[%clk 0:00:17.2]} 32... Qxf2+ {[%clk 0:00:13.5]} 33.
Kxf2 {[%clk 0:00:18.1]} 33... R3e6 {[%clk 0:00:13.4]} 34. Ra5 {[%clk 0:00:15.5]}
34... Rd6 {[%clk 0:00:09.1]} 35. Rc5 {[%clk 0:00:15.3]} 35... Rc8 {[%clk
0:00:08.9]} 36. c7 {[%clk 0:00:15.6]} 36... Rd7 {[%clk 0:00:09.4]} 37. Ra1
{[%clk 0:00:15.5]} 37... Rcxc7 {[%clk 0:00:09.5]} 38. Raa5 {[%clk 0:00:14.1]}
38... Rxc5 {[%clk 0:00:09.7]} 39. Rxc5 {[%clk 0:00:13]} 39... Kg7 {[%clk
0:00:09.6]} 40. Ke2 {[%clk 0:00:13.5]} 40... Kf6 {[%clk 0:00:10]} 41. Kd2 {[%clk
0:00:14.2]} 41... Ke6 {[%clk 0:00:10.6]} 42. Kc3 {[%clk 0:00:14.9]} 42... f5
{[%clk 0:00:10.2]} 43. Rc6+ {[%clk 0:00:14.9]} 43... Rd6 {[%clk 0:00:10.6]} 44.
Rc8 {[%clk 0:00:15]} 44... Kf6 {[%clk 0:00:10.5]} 45. Re8 {[%clk 0:00:14.4]}
45... Kg5 {[%clk 0:00:10.4]} 46. g3 {[%clk 0:00:13.6]} 46... Kh5 {[%clk
0:00:07.3]} 47. Re7 {[%clk 0:00:10.8]} 47... g5 {[%clk 0:00:06.3]} 48. Re5
{[%clk 0:00:10.9]} 48... Kg6 {[%clk 0:00:05.5]} 49. Re8 {[%clk 0:00:11.5]} 49...
f4 {[%clk 0:00:05.5]} 50. gxf4 {[%clk 0:00:10.7]} 50... gxf4 {[%clk 0:00:06.4]}
51. Rf8 {[%clk 0:00:11]} 51... Rf6 {[%clk 0:00:05.8]} 52. Rg8+ {[%clk
0:00:11.6]} 52... Kh5 {[%clk 0:00:05.8]} 53. Rd8 {[%clk 0:00:10.2]} 53... f3
{[%clk 0:00:06.4]} 54. Rxd5+ {[%clk 0:00:10.5]} 54... Kh4 {[%clk 0:00:07]} 55.
Ra5 {[%clk 0:00:05.3]} 55... f2 {[%clk 0:00:07.3]} 56. Ra1 {[%clk 0:00:06]}
56... f1=Q {[%clk 0:00:07.9]} 57. Rxf1 {[%clk 0:00:06.9]} 57... Rxf1 {[%clk
0:00:07.7]} 58. Kxc4 {[%clk 0:00:07.8]} 58... Rd1 {[%clk 0:00:08.3]} 59. d5
{[%clk 0:00:08.5]} 59... Kxh3 {[%clk 0:00:08.8]} 60. Kc5 {[%clk 0:00:08.3]}
60... Kg4 {[%clk 0:00:09.3]} 61. d6 {[%clk 0:00:08.8]} 61... h5 {[%clk
0:00:09.8]} 62. Kc6 {[%clk 0:00:09.6]} 62... h4 {[%clk 0:00:09]} 63. d7 {[%clk
0:00:10.2]} 63... Rxd7 {[%clk 0:00:09]} 64. Kxd7 {[%clk 0:00:10.3]} 64... h3
{[%clk 0:00:09.7]} 0-1